[Event "Live Chess"]
[Site "Chess.com"]
[Date "2024.06.02"]
[Round "-"]
[White "RichardABates"]
[Black "nigelst"]
[Result "1-0"]
[WhiteElo "2335"]
[BlackElo "1733"]
[TimeControl "300"]
[EndTime "4:39:19 PDT"]
[Termination "RichardABates won by checkmate"]

1. d4 {[%clk 0:04:57.9]} 1... Nf6 {[%clk 0:04:56.5]} 2. Nf3 {[%clk 0:04:55.8]}
2... e6 {[%clk 0:04:50.7]} 3. c4 {[%clk 0:04:54.4]} 3... Bb4+ {[%clk 0:04:47.6]}
4. Bd2 {[%clk 0:04:51.6]} 4... Qe7 {[%clk 0:04:47.1]} 5. g3 {[%clk 0:04:49.6]}
5... Nc6 {[%clk 0:04:38.8]} 6. Bg2 {[%clk 0:04:48]} 6... Bxd2+ {[%clk
0:04:31.7]} 7. Qxd2 {[%clk 0:04:46.1]} 7... Ne4 {[%clk 0:04:30.1]} 8. Qc2 {[%clk
0:04:44.5]} 8... Qb4+ {[%clk 0:04:26.2]} 9. Nc3 {[%clk 0:04:43.2]} 9... Nxc3
{[%clk 0:04:19.9]} 10. Qxc3 {[%clk 0:04:42.1]} 10... Qxc3+ {[%clk 0:04:17.7]}
11. bxc3 {[%clk 0:04:40.9]} 11... d6 {[%clk 0:04:16.5]} 12. O-O {[%clk 0:04:38]}
12... Bd7 {[%clk 0:04:10.6]} 13. Nd2 {[%clk 0:04:30.3]} 13... O-O {[%clk
0:04:04.3]} 14. Rab1 {[%clk 0:04:28.8]} 14... Na5 {[%clk 0:04:02.9]} 15. Bxb7
{[%clk 0:04:22.7]} 15... Rab8 {[%clk 0:03:55]} 16. Bg2 {[%clk 0:04:20.6]} 16...
f5 {[%clk 0:03:50.3]} 17. Rb4 {[%clk 0:04:11.1]} 17... Nc6 {[%clk 0:03:42.3]}
18. Bxc6 {[%clk 0:04:08.1]} 18... Bxc6 {[%clk 0:03:40.6]} 19. Rfb1 {[%clk
0:04:06.6]} 19... Rb6 {[%clk 0:03:36.9]} 20. Nb3 {[%clk 0:03:53.8]} 20... Rfb8
{[%clk 0:03:28.1]} 21. a3 {[%clk 0:03:48]} 21... Be4 {[%clk 0:03:24.7]} 22. Rc1
{[%clk 0:03:39.4]} 22... g5 {[%clk 0:03:14.2]} 23. f3 {[%clk 0:03:38]} 23... Ba8
{[%clk 0:03:06.5]} 24. c5 {[%clk 0:03:35]} 24... Rb5 {[%clk 0:02:54.1]} 25. cxd6
{[%clk 0:03:26.2]} 25... cxd6 {[%clk 0:02:51.7]} 26. Kf2 {[%clk 0:03:23.8]}
26... Kf7 {[%clk 0:02:39.2]} 27. Nd2 {[%clk 0:03:18.3]} 27... a5 {[%clk
0:02:34.9]} 28. Rxb5 {[%clk 0:03:13.6]} 28... Rxb5 {[%clk 0:02:32.9]} 29. Nc4
{[%clk 0:03:12.6]} 29... Ke7 {[%clk 0:02:23.6]} 30. a4 {[%clk 0:03:10.8]} 30...
Rd5 {[%clk 0:02:15.7]} 31. Nb6 {[%clk 0:03:08.6]} 31... Bc6 {[%clk 0:02:08.1]}
32. Nxd5+ {[%clk 0:03:06.9]} 32... Bxd5 {[%clk 0:02:06.9]} 33. c4 {[%clk
0:03:05.8]} 33... Bc6 {[%clk 0:02:06]} 34. c5 {[%clk 0:03:04.1]} 34... Bxa4
{[%clk 0:02:00.1]} 35. Ra1 {[%clk 0:03:02.3]} 35... Bc6 {[%clk 0:01:53.1]} 36.
Rxa5 {[%clk 0:02:59.9]} 36... dxc5 {[%clk 0:01:52.1]} 37. Rxc5 {[%clk
0:02:55.4]} 37... Bd5 {[%clk 0:01:50]} 38. Ke3 {[%clk 0:02:52.7]} 38... Kd6
{[%clk 0:01:48.2]} 39. Kd3 {[%clk 0:02:49.6]} 39... h5 {[%clk 0:01:43.8]} 40. e4
{[%clk 0:02:47.6]} 40... fxe4+ {[%clk 0:01:42.3]} 41. fxe4 {[%clk 0:02:46.4]}
41... Bb7 {[%clk 0:01:40.5]} 42. e5+ {[%clk 0:02:39.9]} 42... Kd7 {[%clk
0:01:33.8]} 43. Kc4 {[%clk 0:02:37]} 43... Ba6+ {[%clk 0:01:31.3]} 44. Kb4
{[%clk 0:02:35.3]} 44... Bd3 {[%clk 0:01:26.2]} 45. Ka5 {[%clk 0:02:32.7]} 45...
Be4 {[%clk 0:01:25]} 46. Kb6 {[%clk 0:02:31.5]} 46... h4 {[%clk 0:01:22.9]} 47.
gxh4 {[%clk 0:02:29]} 47... gxh4 {[%clk 0:01:21.6]} 48. Rc7+ {[%clk 0:02:27.8]}
48... Kd8 {[%clk 0:01:19.7]} 49. Rg7 {[%clk 0:02:25.3]} 49... h3 {[%clk
0:01:13.7]} 50. Kc5 {[%clk 0:02:23.7]} 50... Bg2 {[%clk 0:01:10.1]} 51. Kd6
{[%clk 0:02:21.9]} 51... Bd5 {[%clk 0:01:07.4]} 52. Rg8# {[%clk 0:02:20.4]} 1-0

[Event "Live Chess"]
[Site "Chess.com"]
[Date "2024.06.02"]
[Round "-"]
[White "E2E4colchester"]
[Black "Harry_Li"]
[Result "0-1"]
[WhiteElo "1366"]
[BlackElo "2165"]
[TimeControl "300"]
[EndTime "4:39:24 PDT"]
[Termination "Harry_Li won by checkmate"]

1. d4 {[%clk 0:04:47.8]} 1... Nf6 {[%clk 0:04:58.4]} 2. c4 {[%clk 0:04:46.9]}
2... g6 {[%clk 0:04:55.4]} 3. e3 {[%clk 0:04:45.8]} 3... Bg7 {[%clk 0:04:53.8]}
4. Nc3 {[%clk 0:04:45]} 4... O-O {[%clk 0:04:51.7]} 5. g3 {[%clk 0:04:44]} 5...
d6 {[%clk 0:04:50.9]} 6. Bg2 {[%clk 0:04:43.2]} 6... Nbd7 {[%clk 0:04:49.8]} 7.
b3 {[%clk 0:04:41.4]} 7... e5 {[%clk 0:04:47.8]} 8. dxe5 {[%clk 0:04:38.5]} 8...
dxe5 {[%clk 0:04:41.9]} 9. Ba3 {[%clk 0:04:34.7]} 9... Re8 {[%clk 0:04:40.5]}
10. Qc2 {[%clk 0:04:30.8]} 10... c6 {[%clk 0:04:38]} 11. O-O-O {[%clk
0:04:29.6]} 11... Qa5 {[%clk 0:04:24.7]} 12. Bd6 {[%clk 0:04:23.5]} 12... e4
{[%clk 0:03:47.1]} 13. b4 {[%clk 0:04:16.5]} 13... Qf5 {[%clk 0:03:35.8]} 14. c5
{[%clk 0:04:11.8]} 14... a5 {[%clk 0:03:27.2]} 15. a3 {[%clk 0:04:06.1]} 15...
axb4 {[%clk 0:03:25.5]} 16. axb4 {[%clk 0:04:04.7]} 16... b6 {[%clk 0:03:11.6]}
17. Na4 {[%clk 0:03:32.9]} 17... Nd5 {[%clk 0:03:02.4]} 18. Nxb6 {[%clk
0:03:24.6]} 18... Ra1+ {[%clk 0:02:56.1]} 19. Kd2 {[%clk 0:03:21.3]} 19... Qxf2+
{[%clk 0:02:55]} 20. Ne2 {[%clk 0:03:17.3]} 20... Qxe3+ {[%clk 0:02:54.2]} 21.
Ke1 {[%clk 0:03:14.7]} 21... Bc3+ {[%clk 0:02:47]} 22. Kf1 {[%clk 0:03:10]}
22... Rxd1+ {[%clk 0:02:32.2]} 23. Qxd1 {[%clk 0:03:05.8]} 23... N7xb6 {[%clk
0:02:30.6]} 24. cxb6 {[%clk 0:03:03.7]} 24... Qxb6 {[%clk 0:02:24]} 25. Nxc3
{[%clk 0:02:33.4]} 25... Ne3+ {[%clk 0:02:22.4]} 26. Ke2 {[%clk 0:02:27.8]}
26... Nxd1 {[%clk 0:02:20.5]} 27. Rxd1 {[%clk 0:02:27.2]} 27... Bg4+ {[%clk
0:02:19.4]} 28. Ke1 {[%clk 0:02:25.2]} 28... Qe3+ {[%clk 0:02:16.9]} 29. Kf1
{[%clk 0:02:23.5]} 29... Bxd1 {[%clk 0:02:11.2]} 30. Nxd1 {[%clk 0:02:22]} 30...
Qd3+ {[%clk 0:02:10.6]} 31. Kf2 {[%clk 0:02:19.5]} 31... Qd2+ {[%clk 0:02:05.7]}
32. Kf1 {[%clk 0:02:15.6]} 32... Qxd1+ {[%clk 0:02:05.1]} 33. Kf2 {[%clk
0:02:14.7]} 33... e3# {[%clk 0:02:04]} 0-1

[Event "Live Chess"]
[Site "Chess.com"]
[Date "2024.06.02"]
[Round "-"]
[White "CarmelJane"]
[Black "ClassyChameleon"]
[Result "0-1"]
[WhiteElo "2035"]
[BlackElo "1546"]
[TimeControl "300"]
[EndTime "4:39:29 PDT"]
[Termination "ClassyChameleon won by resignation"]

1. e4 {[%clk 0:04:57.2]} 1... e5 {[%clk 0:04:59.3]} 2. Nf3 {[%clk 0:04:55.9]}
2... Nc6 {[%clk 0:04:58.6]} 3. d4 {[%clk 0:04:55.3]} 3... exd4 {[%clk
0:04:56.3]} 4. Bc4 {[%clk 0:04:54.8]} 4... Bc5 {[%clk 0:04:51]} 5. c3 {[%clk
0:04:51.8]} 5... Nge7 {[%clk 0:04:41.2]} 6. cxd4 {[%clk 0:04:48.9]} 6... Bb4+
{[%clk 0:04:37.4]} 7. Nc3 {[%clk 0:04:47.9]} 7... Bxc3+ {[%clk 0:04:36.7]} 8.
bxc3 {[%clk 0:04:46.7]} 8... O-O {[%clk 0:04:35.6]} 9. O-O {[%clk 0:04:40.9]}
9... Ng6 {[%clk 0:04:34.3]} 10. e5 {[%clk 0:04:36]} 10... d5 {[%clk 0:04:31.6]}
11. Bd3 {[%clk 0:04:28.6]} 11... Be6 {[%clk 0:04:24.7]} 12. Rb1 {[%clk
0:04:26.2]} 12... Na5 {[%clk 0:04:19.4]} 13. Ng5 {[%clk 0:04:08.8]} 13... b6
{[%clk 0:04:15.4]} 14. Nxe6 {[%clk 0:04:06.9]} 14... fxe6 {[%clk 0:04:14.1]} 15.
Bxg6 {[%clk 0:04:02.3]} 15... hxg6 {[%clk 0:04:12.2]} 16. Qg4 {[%clk 0:04:01.8]}
16... Qe8 {[%clk 0:04:06.6]} 17. Re1 {[%clk 0:03:41.2]} 17... Nc4 {[%clk
0:04:04]} 18. Rb4 {[%clk 0:03:21.4]} 18... Qf7 {[%clk 0:04:02.1]} 19. Qh4 {[%clk
0:03:12.9]} 19... c6 {[%clk 0:03:52.3]} 20. Bg5 {[%clk 0:03:03.6]} 20... a5
{[%clk 0:03:39.3]} 21. Rbb1 {[%clk 0:03:01.9]} 21... b5 {[%clk 0:03:26.2]} 22.
Red1 {[%clk 0:02:53]} 22... b4 {[%clk 0:02:58.8]} 23. cxb4 {[%clk 0:02:49.2]}
23... axb4 {[%clk 0:02:58.7]} 24. Be7 {[%clk 0:02:39.6]} 24... Rfb8 {[%clk
0:02:34.4]} 25. Rb3 {[%clk 0:02:30.5]} 25... Ra3 {[%clk 0:02:18.3]} 26. Rxb4
{[%clk 0:01:15.1]} 26... Rxb4 {[%clk 0:02:12.6]} 27. Bxb4 {[%clk 0:01:15]} 27...
Rxa2 {[%clk 0:02:07.1]} 28. Rb1 {[%clk 0:01:12.5]} 28... Rb2 {[%clk 0:01:48.9]}
29. Ra1 {[%clk 0:00:57.5]} 29... Qe8 {[%clk 0:01:06.2]} 30. Bc5 {[%clk
0:00:51.6]} 30... Nd2 {[%clk 0:00:43.6]} 31. f3 {[%clk 0:00:40]} 31... Nb3
{[%clk 0:00:40.6]} 32. Rc1 {[%clk 0:00:30.8]} 32... Nxc1 {[%clk 0:00:39.3]} 33.
Qe1 {[%clk 0:00:24.6]} 33... Rb1 {[%clk 0:00:34.3]} 34. Qh4 {[%clk 0:00:15]}
34... Nd3+ {[%clk 0:00:26.2]} 0-1

[Event "Live Chess"]
[Site "Chess.com"]
[Date "2024.06.02"]
[Round "-"]
[White "Trendle"]
[Black "gunslinger222"]
[Result "0-1"]
[WhiteElo "2610"]
[BlackElo "2277"]
[TimeControl "300"]
[EndTime "4:39:37 PDT"]
[Termination "gunslinger222 won by resignation"]

1. e4 {[%clk 0:04:58.3]} 1... e6 {[%clk 0:04:59.2]} 2. d4 {[%clk 0:04:57.1]}
2... d5 {[%clk 0:04:58.6]} 3. e5 {[%clk 0:04:56.7]} 3... c5 {[%clk 0:04:57.6]}
4. c3 {[%clk 0:04:56.4]} 4... Nc6 {[%clk 0:04:57]} 5. Nf3 {[%clk 0:04:56]} 5...
Nh6 {[%clk 0:04:55.2]} 6. Bxh6 {[%clk 0:04:45.5]} 6... gxh6 {[%clk 0:04:55.1]}
7. Bd3 {[%clk 0:04:44.6]} 7... cxd4 {[%clk 0:04:51]} 8. cxd4 {[%clk 0:04:43.4]}
8... Bg7 {[%clk 0:04:50.2]} 9. Na3 {[%clk 0:04:39.3]} 9... O-O {[%clk
0:04:44.7]} 10. O-O {[%clk 0:04:35.5]} 10... f6 {[%clk 0:04:40.7]} 11. exf6
{[%clk 0:04:34.3]} 11... Bxf6 {[%clk 0:04:39.6]} 12. Nc2 {[%clk 0:04:33.1]}
12... Qe7 {[%clk 0:04:35.3]} 13. Qd2 {[%clk 0:04:29]} 13... Qg7 {[%clk
0:04:34.1]} 14. Rfe1 {[%clk 0:04:26.2]} 14... Kh8 {[%clk 0:04:28.9]} 15. Bb5
{[%clk 0:04:20.7]} 15... Ne7 {[%clk 0:03:32.4]} 16. Ne3 {[%clk 0:04:15.6]} 16...
a6 {[%clk 0:03:27.9]} 17. Ba4 {[%clk 0:04:06.8]} 17... b5 {[%clk 0:03:25.4]} 18.
Bc2 {[%clk 0:04:05.8]} 18... Nc6 {[%clk 0:03:24.5]} 19. Rad1 {[%clk 0:04:02.4]}
19... Bd7 {[%clk 0:03:19.8]} 20. h3 {[%clk 0:03:52.6]} 20... Be7 {[%clk
0:03:02.6]} 21. Kh1 {[%clk 0:03:32.1]} 21... Bb4 {[%clk 0:03:01.1]} 22. Qe2
{[%clk 0:03:12]} 22... Bxe1 {[%clk 0:02:59.7]} 23. Qxe1 {[%clk 0:03:03.8]} 23...
Rxf3 {[%clk 0:02:58.8]} 24. gxf3 {[%clk 0:03:03.7]} 24... Nxd4 {[%clk
0:02:58.2]} 25. Qc3 {[%clk 0:02:07.4]} 25... Nxf3 {[%clk 0:02:38.3]} 26. Ng4
{[%clk 0:02:04.4]} 26... Qxc3 {[%clk 0:02:30.8]} 27. bxc3 {[%clk 0:02:03.3]}
27... Kg7 {[%clk 0:02:22.9]} 28. Rd3 {[%clk 0:01:58.9]} 28... Ng5 {[%clk
0:02:20.1]} 29. Ne5 {[%clk 0:01:54.6]} 29... Be8 {[%clk 0:02:14.5]} 30. Rg3
{[%clk 0:01:52.3]} 30... Kf6 {[%clk 0:02:11.2]} 31. f4 {[%clk 0:01:49.9]} 31...
Ne4 {[%clk 0:02:04.6]} 32. Bxe4 {[%clk 0:01:46.9]} 32... dxe4 {[%clk 0:02:04.5]}
33. Kg1 {[%clk 0:01:33.9]} 33... Kf5 {[%clk 0:01:56.6]} 34. Rg4 {[%clk
0:01:24.5]} 34... h5 {[%clk 0:01:51.7]} 35. Rg7 {[%clk 0:01:15.3]} 35... Kxf4
{[%clk 0:01:50.9]} 36. Nf7 {[%clk 0:01:07]} 36... Ra7 {[%clk 0:01:40.2]} 37. Ng5
{[%clk 0:01:02.2]} 37... Rxg7 {[%clk 0:01:34.3]} 0-1

[Event "Live Chess"]
[Site "Chess.com"]
[Date "2024.06.02"]
[Round "-"]
[White "RamsayFlayer"]
[Black "Bradfield133"]
[Result "1/2-1/2"]
[WhiteElo "1923"]
[BlackElo "1844"]
[TimeControl "300"]
[EndTime "4:39:37 PDT"]
[Termination "Game drawn by repetition"]

1. e4 {[%clk 0:04:53.6]} 1... c5 {[%clk 0:04:58.7]} 2. c3 {[%clk 0:04:52.2]}
2... d5 {[%clk 0:04:56.8]} 3. exd5 {[%clk 0:04:51.2]} 3... Qxd5 {[%clk
0:04:55.8]} 4. d4 {[%clk 0:04:50.8]} 4... Nc6 {[%clk 0:04:53.2]} 5. Nf3 {[%clk
0:04:49.4]} 5... Bg4 {[%clk 0:04:50.8]} 6. Be2 {[%clk 0:04:47.9]} 6... Nf6
{[%clk 0:04:48.7]} 7. h3 {[%clk 0:04:46]} 7... Bh5 {[%clk 0:04:46.8]} 8. Be3
{[%clk 0:04:43.9]} 8... cxd4 {[%clk 0:04:44.9]} 9. cxd4 {[%clk 0:04:42]} 9... e6
{[%clk 0:04:43.9]} 10. Nc3 {[%clk 0:04:40.6]} 10... Qd6 {[%clk 0:04:41.8]} 11.
Nb5 {[%clk 0:04:35.3]} 11... Qb8 {[%clk 0:04:40.4]} 12. g3 {[%clk 0:04:25.3]}
12... Nd5 {[%clk 0:04:37.5]} 13. O-O {[%clk 0:04:08.5]} 13... Nxe3 {[%clk
0:04:31.9]} 14. fxe3 {[%clk 0:04:07.4]} 14... Qxg3+ {[%clk 0:04:29.7]} 15. Kh1
{[%clk 0:04:06.2]} 15... Qxh3+ {[%clk 0:04:28.3]} 16. Nh2 {[%clk 0:04:05.4]}
16... Bxe2 {[%clk 0:04:16.5]} 17. Qxe2 {[%clk 0:04:00.2]} 17... Rc8 {[%clk
0:04:08.5]} 18. Rf3 {[%clk 0:03:40.7]} 18... Qh5 {[%clk 0:03:55.5]} 19. Raf1
{[%clk 0:03:37.6]} 19... a6 {[%clk 0:03:50.4]} 20. Nc3 {[%clk 0:03:32.6]} 20...
Bd6 {[%clk 0:03:47]} 21. Rxf7 {[%clk 0:03:25.1]} 21... Qxf7 {[%clk 0:03:44.5]}
22. Rxf7 {[%clk 0:03:24.9]} 22... Kxf7 {[%clk 0:03:43.6]} 23. Ne4 {[%clk
0:03:14.4]} 23... Be7 {[%clk 0:03:29.5]} 24. Qh5+ {[%clk 0:03:05.4]} 24... g6
{[%clk 0:03:23.2]} 25. Ng5+ {[%clk 0:02:58.7]} 25... Bxg5 {[%clk 0:03:18.9]} 26.
Qxg5 {[%clk 0:02:57.5]} 26... Kg7 {[%clk 0:03:05.7]} 27. Ng4 {[%clk 0:02:54.5]}
27... Rhf8 {[%clk 0:03:03]} 28. Kg2 {[%clk 0:02:45]} 28... Rf5 {[%clk
0:02:55.6]} 29. Qh6+ {[%clk 0:02:40.1]} 29... Kg8 {[%clk 0:02:53.7]} 30. Qh4
{[%clk 0:02:25.3]} 30... Kg7 {[%clk 0:02:22.7]} 31. Qh6+ {[%clk 0:02:22.8]}
31... Kg8 {[%clk 0:02:20.9]} 32. Qh4 {[%clk 0:02:21.9]} 32... Kg7 {[%clk
0:02:20]} 33. Qh6+ {[%clk 0:02:16.1]} 1/2-1/2

[Event "Live Chess"]
[Site "Chess.com"]
[Date "2024.06.02"]
[Round "-"]
[White "dhairyapandyauk"]
[Black "Kyrylo7770"]
[Result "1-0"]
[WhiteElo "1642"]
[BlackElo "1646"]
[TimeControl "300"]
[EndTime "4:39:38 PDT"]
[Termination "dhairyapandyauk won by resignation"]

1. e4 {[%clk 0:04:58.1]} 1... c6 {[%clk 0:04:58.8]} 2. d4 {[%clk 0:04:57.2]}
2... d5 {[%clk 0:04:58.5]} 3. exd5 {[%clk 0:04:56.9]} 3... cxd5 {[%clk
0:04:58.4]} 4. Bf4 {[%clk 0:04:56.4]} 4... Nf6 {[%clk 0:04:58.3]} 5. Nc3 {[%clk
0:04:54.7]} 5... Bg4 {[%clk 0:04:57.7]} 6. Be2 {[%clk 0:04:53.2]} 6... h5 {[%clk
0:04:56.4]} 7. h3 {[%clk 0:04:51.8]} 7... Bxe2 {[%clk 0:04:55.5]} 8. Ngxe2
{[%clk 0:04:51.2]} 8... e6 {[%clk 0:04:55.2]} 9. Qd3 {[%clk 0:04:50.1]} 9... Bd6
{[%clk 0:04:54.3]} 10. Bxd6 {[%clk 0:04:44.5]} 10... Qxd6 {[%clk 0:04:52.6]} 11.
Ng3 {[%clk 0:04:44]} 11... Nc6 {[%clk 0:04:50.1]} 12. Nce2 {[%clk 0:04:41.4]}
12... Qb4+ {[%clk 0:04:48]} 13. Qc3 {[%clk 0:04:39]} 13... Qb6 {[%clk
0:04:45.3]} 14. Qb3 {[%clk 0:04:30.3]} 14... Qc7 {[%clk 0:04:42.5]} 15. c3
{[%clk 0:04:28]} 15... h4 {[%clk 0:04:39.1]} 16. Nf1 {[%clk 0:04:27.1]} 16...
Ne4 {[%clk 0:04:38.5]} 17. Ne3 {[%clk 0:04:25.8]} 17... Rb8 {[%clk 0:04:27.5]}
18. a4 {[%clk 0:04:21.4]} 18... O-O {[%clk 0:04:21.6]} 19. O-O {[%clk
0:04:19.9]} 19... Na5 {[%clk 0:04:20.8]} 20. Qc2 {[%clk 0:04:16.8]} 20... f5
{[%clk 0:04:16.4]} 21. f3 {[%clk 0:04:05.2]} 21... Ng3 {[%clk 0:04:14.5]} 22.
Nxg3 {[%clk 0:04:04]} 22... Qxg3 {[%clk 0:04:13.5]} 23. Qf2 {[%clk 0:04:01.6]}
23... Qg5 {[%clk 0:04:11.2]} 24. f4 {[%clk 0:03:56.2]} 24... Qf6 {[%clk
0:04:04.7]} 25. Rfe1 {[%clk 0:03:55]} 25... g6 {[%clk 0:04:03.4]} 26. Qe2 {[%clk
0:03:43.1]} 26... Rfe8 {[%clk 0:03:50.2]} 27. Nf1 {[%clk 0:03:42.1]} 27... Nc4
{[%clk 0:03:48.5]} 28. Nh2 {[%clk 0:03:39.9]} 28... Kf7 {[%clk 0:03:44.5]} 29.
Nf3 {[%clk 0:03:38.7]} 29... Rh8 {[%clk 0:03:42.9]} 30. Ng5+ {[%clk 0:03:36.1]}
30... Ke7 {[%clk 0:03:40.9]} 31. Qxe6+ {[%clk 0:03:34.9]} 31... Qxe6 {[%clk
0:03:39.9]} 32. Rxe6+ {[%clk 0:03:34.1]} 32... Kd7 {[%clk 0:03:38.6]} 33. Rxg6
{[%clk 0:03:32.4]} 33... Nxb2 {[%clk 0:03:32.7]} 34. Rg7+ {[%clk 0:03:24.5]}
34... Kc6 {[%clk 0:03:31.1]} 35. Re1 {[%clk 0:03:19.5]} 35... Nxa4 {[%clk
0:03:29.8]} 36. Re6+ {[%clk 0:03:17.2]} 36... Kb5 {[%clk 0:03:29.5]} 37. Re5
{[%clk 0:03:16.2]} 37... Kc4 {[%clk 0:03:28.5]} 38. Rc7+ {[%clk 0:03:13.4]}
38... Kd3 {[%clk 0:03:27.1]} 39. Rxd5 {[%clk 0:03:01.3]} 39... Nxc3 {[%clk
0:03:24.9]} 40. Rdc5 {[%clk 0:02:59.7]} 40... Ne2+ {[%clk 0:03:21.5]} 41. Kf2
{[%clk 0:02:58.9]} 41... Nxf4 {[%clk 0:03:19.1]} 42. Rc3+ {[%clk 0:02:57.2]}
42... Kxd4 {[%clk 0:03:14.5]} 43. R7c4+ {[%clk 0:02:55.2]} 43... Ke5 {[%clk
0:03:13.9]} 44. Re3+ {[%clk 0:02:53.4]} 44... Kd5 {[%clk 0:03:10.6]} 45. Rxf4
{[%clk 0:02:52.1]} 45... Rbc8 {[%clk 0:03:09.1]} 46. Rxf5+ {[%clk 0:02:51.2]}
46... Kd4 {[%clk 0:03:07.9]} 47. Ne6+ {[%clk 0:02:49.8]} 47... Kc4 {[%clk
0:03:04.6]} 48. Re4+ {[%clk 0:02:44.1]} 48... Kd3 {[%clk 0:03:04]} 49. Rd4+
{[%clk 0:02:42.8]} 49... Kc2 {[%clk 0:03:02.3]} 50. Rc5+ {[%clk 0:02:39.1]}
50... Kb3 {[%clk 0:03:01.9]} 51. Rxc8 {[%clk 0:02:34.7]} 51... Rxc8 {[%clk
0:03:00.7]} 52. Rxh4 {[%clk 0:02:28.9]} 52... Rc2+ {[%clk 0:02:59.9]} 53. Kf3
{[%clk 0:02:27.9]} 53... Rc6 {[%clk 0:02:58]} 54. Nd4+ {[%clk 0:02:26.6]} 54...
Kc4 {[%clk 0:02:57]} 55. Nxc6+ {[%clk 0:02:26.1]} 55... Kc5 {[%clk 0:02:56]} 56.
Nxa7 {[%clk 0:02:24.9]} 1-0

[Event "Live Chess"]
[Site "Chess.com"]
[Date "2024.06.02"]
[Round "-"]
[White "Ninifu"]
[Black "slava_ukr"]
[Result "1-0"]
[WhiteElo "2010"]
[BlackElo "2383"]
[TimeControl "300"]
[EndTime "4:39:51 PDT"]
[Termination "Ninifu won by resignation"]

1. d4 {[%clk 0:04:51.8]} 1... d5 {[%clk 0:04:58.9]} 2. e4 {[%clk 0:04:50.4]}
2... dxe4 {[%clk 0:04:57.6]} 3. Nc3 {[%clk 0:04:49.8]} 3... Nf6 {[%clk 0:04:56]}
4. f3 {[%clk 0:04:49.1]} 4... e3 {[%clk 0:04:55]} 5. Bxe3 {[%clk 0:04:47.9]}
5... e6 {[%clk 0:04:51.9]} 6. Bd3 {[%clk 0:04:45.7]} 6... Be7 {[%clk 0:04:51.1]}
7. Nge2 {[%clk 0:04:44.2]} 7... a6 {[%clk 0:04:50]} 8. O-O {[%clk 0:04:41.4]}
8... b5 {[%clk 0:04:49.2]} 9. Ng3 {[%clk 0:04:39.7]} 9... O-O {[%clk 0:04:46.9]}
10. Nce4 {[%clk 0:04:37.8]} 10... Bb7 {[%clk 0:04:46.1]} 11. Nxf6+ {[%clk
0:04:36.2]} 11... Bxf6 {[%clk 0:04:45.4]} 12. Ne4 {[%clk 0:04:35.6]} 12... Be7
{[%clk 0:04:44.5]} 13. Qe1 {[%clk 0:04:16.1]} 13... Nd7 {[%clk 0:04:42.6]} 14.
Qg3 {[%clk 0:04:15]} 14... Nf6 {[%clk 0:04:06.4]} 15. Qh3 {[%clk 0:04:00.2]}
15... g6 {[%clk 0:03:53.6]} 16. c3 {[%clk 0:03:55.6]} 16... Qd5 {[%clk
0:03:42.1]} 17. Nxf6+ {[%clk 0:03:44.9]} 17... Bxf6 {[%clk 0:03:41.1]} 18. Be4
{[%clk 0:03:44.3]} 18... Qd7 {[%clk 0:03:38.7]} 19. Bxb7 {[%clk 0:03:41.8]}
19... Rab8 {[%clk 0:03:37.8]} 20. Be4 {[%clk 0:03:38.8]} 20... Bg7 {[%clk
0:03:36.9]} 21. Bh6 {[%clk 0:03:35.6]} 21... f5 {[%clk 0:03:28.8]} 22. Bxg7
{[%clk 0:03:32.2]} 22... Kxg7 {[%clk 0:03:27.7]} 23. Bc2 {[%clk 0:03:30.2]}
23... Rbd8 {[%clk 0:03:21.6]} 24. Rfe1 {[%clk 0:03:29.1]} 24... Rfe8 {[%clk
0:03:20.7]} 25. Qg3 {[%clk 0:03:27.6]} 25... b4 {[%clk 0:03:11.5]} 26. Qe5+
{[%clk 0:03:18.3]} 26... Kf7 {[%clk 0:03:10.1]} 27. Rad1 {[%clk 0:03:11.8]}
27... Qd6 {[%clk 0:03:05.3]} 28. Bb3 {[%clk 0:02:59.9]} 28... bxc3 {[%clk
0:03:00.6]} 29. bxc3 {[%clk 0:02:58.3]} 29... Qxe5 {[%clk 0:02:51.2]} 30. Rxe5
{[%clk 0:02:56.8]} 30... c6 {[%clk 0:02:48.3]} 31. Rde1 {[%clk 0:02:55]} 31...
Rd6 {[%clk 0:02:47.5]} 32. Ra5 {[%clk 0:02:44.8]} 32... Ra8 {[%clk 0:02:42.3]}
33. Bc4 {[%clk 0:02:42.7]} 33... Kf6 {[%clk 0:02:36.9]} 34. Rxa6 {[%clk
0:02:40.5]} 34... Rb8 {[%clk 0:02:36.3]} 35. Ra7 {[%clk 0:02:32.5]} 35... Rb2
{[%clk 0:02:32.6]} 36. Bb3 {[%clk 0:02:23.9]} 36... h5 {[%clk 0:02:27.9]} 37. h4
{[%clk 0:02:12.9]} 37... f4 {[%clk 0:02:15.7]} 38. Re4 {[%clk 0:02:06.2]} 38...
g5 {[%clk 0:02:08.7]} 39. hxg5+ {[%clk 0:02:04.4]} 39... Kxg5 {[%clk 0:02:07.8]}
40. Rxe6 {[%clk 0:01:59.5]} 40... Rxe6 {[%clk 0:01:56.8]} 41. Bxe6 {[%clk
0:01:57.9]} 41... Rc2 {[%clk 0:01:50]} 42. c4 {[%clk 0:01:52.5]} 42... Rd2
{[%clk 0:01:48.7]} 43. d5 {[%clk 0:01:50.7]} 43... cxd5 {[%clk 0:01:47.9]} 44.
cxd5 {[%clk 0:01:48.6]} 44... Kh4 {[%clk 0:01:46.8]} 45. Kh2 {[%clk 0:01:40]}
45... Kg5 {[%clk 0:01:41.9]} 46. Rf7 {[%clk 0:01:14.1]} 46... Rd4 {[%clk
0:01:29.4]} 47. Rf5+ {[%clk 0:01:09.7]} 47... Kg6 {[%clk 0:01:28.3]} 48. Re5
{[%clk 0:01:03.6]} 48... Ra4 {[%clk 0:01:23.1]} 49. d6 {[%clk 0:00:57.6]} 49...
Kf6 {[%clk 0:01:19.2]} 50. d7 {[%clk 0:00:49.6]} 50... Ra8 {[%clk 0:01:16]} 51.
Rd5 {[%clk 0:00:46.2]} 51... Rd8 {[%clk 0:01:12.6]} 52. Bh3 {[%clk 0:00:42.8]}
52... h4 {[%clk 0:01:09.8]} 53. Rc5 {[%clk 0:00:41.8]} 53... Ke7 {[%clk
0:01:07.1]} 54. Rc8 {[%clk 0:00:41]} 1-0